bitfinex/quotes_ETHUSD_20251026
["timestamp","ask_amount","ask_price","bid_price","bid_amount"]
[1761483318411,0.001,4067.1,4067.0,4.99398331]
[1761483318584,0.001,4067.1,4067.0,5.86256717]
[1761483318791,0.001,4067.1,4067.0,6.80039136]
[1761483319191,0.001,4067.1,4067.0,6.79803034]
[1761483321176,0.001,4067.1,4067.0,5.9318075]
[1761483321414,0.001,4067.1,4067.0,6.4386875]
[1761483322494,0.001,4067.1,4067.0,7.74131179]
[1761483322715,0.001,4067.1,4067.0,6.4386875]
[1761483322871,0.001,4067.1,4067.0,6.3154875]
[1761483323075,0.001,4067.5,4067.4,4.52065304]
[1761483323304,0.001,4067.5,4067.4,7.19372357]
[1761483323475,0.001,4067.5,4067.4,7.50292357]
[1761483324106,0.001,4067.5,4067.4,4.84595336]
[1761483324312,0.001,4067.5,4067.4,5.49431732]
[1761483324607,0.001,4067.5,4067.4,3.03574428]
[1761483324773,0.001,4067.5,4067.4,0.83218032]
[1761483325173,0.001,4067.5,4066.8,0.64836396]
[1761483325413,0.001,4067.5,4066.9,0.51894335]
[1761483325573,0.001,4067.5,4067.0,0.51894335]
[1761483325771,0.001,4067.5,4066.7,2.45897197]
[1761483326002,0.001,4067.5,4066.8,2.97801249]
[1761483326205,0.001,4067.5,4066.8,2.45893474]
[1761483326405,0.001,4067.5,4066.9,2.45886562]
[1761483326632,0.001,4067.5,4067.4,4.09097304]
[1761483326794,0.001,4067.9,4067.8,2.96521128]
[1761483326981,0.2196,4070.2,4068.0,2.96509042]
[1761483327180,0.2196,4070.2,4069.4,2.45736273]
[1761483327389,0.2196,4071.0,4068.6,1.5552]
[1761483327390,0.2196,4071.0,4070.2,2.45688011]
[1761483327592,0.2196,4071.4,4070.3,0.02456821]
[1761483328127,0.2196,4071.4,4070.5,2.45664311]
[1761483328330,0.2196,4071.4,4070.6,1.801]
[1761483328640,0.2196,4072.1,4070.1,0.4222]
[1761483328938,2.45580864,4072.0,4070.9,2.45644694]
[1761483329080,0.678,4072.1,4071.0,2.45639786]
[1761483329452,0.2196,4072.1,4071.0,2.45639786]
[1761483329725,0.2196,4072.1,4071.3,2.45620441]
[1761483329932,0.4584,4072.5,4071.2,1.5552]
[1761483330136,0.4584,4072.5,4071.5,2.45606005]
[1761483330488,0.4584,4072.5,4071.2,2.45627247]
[1761483330489,2.45564168,4072.3,4071.2,2.45627116]
[1761483330853,2.45564168,4072.3,4071.2,4.01147116]
[1761483330988,2.74694252,4072.4,4071.3,2.45621064]
[1761483331189,2.74694252,4072.4,4071.4,2.45615338]
[1761483331190,0.29138493,4072.4,4071.4,2.45615338]
[1761483331394,2.74694056,4072.4,4071.3,2.45621665]
[1761483331604,0.32053406,4072.3,4071.3,2.45621665]
[1761483331894,2.45586075,4071.9,4070.6,4.01178514]
[1761483332091,2.45592576,4071.8,4070.7,2.45656423]
[1761483332519,0.2196,4071.7,4070.7,2.45656423]
[1761483332833,0.2196,4071.7,4070.3,0.3072]
[1761483333029,2.67419616,4074.0,4071.0,4.0115881]
[1761483333030,0.1232,4071.5,4071.0,4.0115881]
[1761483333262,0.1232,4071.5,4071.0,1.5552]
[1761483333913,0.1232,4071.5,4071.1,0.0772]
[1761483334534,0.4584,4071.4,4070.9,0.1232]
[1761483334755,0.1232,4071.2,4070.6,0.1232]
[1761483335047,0.1232,4071.2,4070.7,2.45656378]
[1761483335353,0.1232,4071.2,4070.8,2.48107019]
[1761483335648,0.1232,4071.4,4070.8,0.1232]
[1761483336347,0.38113103,4071.4,4070.4,2.45671145]
[1761483336553,0.38113103,4071.4,4070.6,0.1232]
[1761483336749,0.38113103,4071.4,4070.6,1.6784]
[1761483336965,0.38113103,4071.4,4070.6,0.1232]
[1761483337138,0.38113103,4071.4,4070.7,1.5552]
[1761483337520,0.38113103,4071.4,4070.7,4.01176465]
[1761483338455,0.1232,4071.6,4071.1,1.5552]
[1761483338749,0.1232,4071.6,4071.0,0.1232]
[1761483339263,2.92917592,4071.9,4070.7,2.45657861]
[1761483339465,0.1232,4071.2,4070.7,0.1232]
[1761483339666,0.2186,4070.8,4070.2,2.45686078]
[1761483339965,0.3418,4070.8,4070.3,0.51529916]
[1761483340166,0.1232,4070.8,4070.2,0.1232]
[1761483340369,0.2186,4070.7,4070.3,0.51555984]
[1761483340535,0.2186,4070.7,4069.5,0.86387824]
[1761483340536,0.6919,4070.7,4069.9,2.45706208]
[1761483340769,0.1232,4070.5,4069.9,0.1232]
[1761483340968,0.1232,4070.5,4070.2,2.45688002]
[1761483341559,0.1232,4070.5,4070.1,2.57190367]
[1761483341759,0.1232,4070.5,4070.2,2.45687849]
[1761483342471,0.1232,4070.5,4070.1,0.115]
[1761483342654,0.4733,4070.4,4069.2,0.86387824]
[1761483342857,0.1232,4070.2,4069.6,0.63921985]
[1761483343060,0.1232,4070.2,4069.7,4.52839071]
[1761483343259,0.1232,4070.2,4069.8,0.51601985]
[1761483345666,0.1232,4070.2,4070.1,2.18671325]
[1761483345868,0.1232,4070.2,4069.6,1.6784]
[1761483346168,0.5965,4070.2,4069.7,0.51683038]
[1761483346368,0.90182076,4070.2,4069.8,0.51683038]
[1761483346570,0.4733,4070.1,4069.9,0.51683038]
[1761483346900,0.1232,4070.0,4069.6,2.45719055]
[1761483347087,0.1232,4070.0,4069.7,4.52959407]
[1761483347293,0.1232,4070.0,4069.8,0.51721644]
[1761483348319,0.1232,4070.0,4069.9,0.51721644]
[1761483348708,0.1232,4070.0,4069.7,2.97435679]
[1761483349019,0.1232,4070.0,4069.8,0.51721644]
[1761483349221,0.1232,4070.0,4069.9,1.5552]
[1761483349384,0.1232,4070.0,4069.9,2.07241644]
[1761483349782,0.1232,4070.0,4069.9,0.51721644]
[1761483350018,0.5965,4070.0,4069.8,0.51721644]
[1761483350230,0.5965,4070.0,4069.9,0.51721644]
[1761483350431,0.5965,4070.0,4069.8,0.51721644]
[1761483350589,0.5965,4070.0,4069.9,0.51721644]
[1761483350791,0.1232,4070.0,4069.9,0.51721644]
[1761483351126,2.45664029,4070.6,4069.3,2.45738184]
[1761483351332,2.4568849,4070.2,4069.4,0.51904368]
[1761483351536,2.93013776,4070.3,4069.5,0.51904368]
[1761483351692,2.93013776,4070.3,4069.6,0.51904368]
[1761483351891,2.93013776,4070.3,4069.7,0.51904368]
[1761483352087,2.93013776,4070.3,4069.3,0.02457425]
[1761483352088,0.29301378,4070.2,4069.8,0.5193241]
[1761483352291,0.29301378,4070.2,4069.3,0.67248293]
[1761483352596,0.4733,4070.1,4069.4,2.07452837]
[1761483352916,0.4733,4070.1,4069.5,0.51932837]
[1761483353122,0.1733,4070.1,4069.6,0.51932837]
[1761483353336,2.45698391,4070.1,4069.7,0.51932837]
[1761483353533,0.49138449,4070.0,4069.8,0.51932837]
[1761483353740,2.45687696,4070.3,4069.4,1.5552]
[1761483353904,2.45687696,4070.3,4069.5,0.51944521]
[1761483354105,2.45684192,4070.3,4069.6,0.51944521]
[1761483354304,2.45684192,4070.3,4069.7,0.51944521]
[1761483354503,2.45684192,4070.3,4069.8,0.51944521]
[1761483354739,2.70252611,4070.3,4069.4,4.01252878]
[1761483355036,2.70252611,4070.3,4069.5,0.51963876]
[1761483355240,2.91762611,4070.3,4069.6,0.51963876]
[1761483355426,2.91762611,4070.3,4069.7,0.51963876]
[1761483355600,0.2151,4070.3,4069.8,0.51963876]
[1761483355802,0.2151,4070.3,4069.9,0.51963876]
[1761483356006,0.2151,4070.3,4070.0,0.51963876]
[1761483356206,0.2151,4070.3,4070.1,0.51963876]
[1761483356407,0.2151,4070.3,4070.2,0.51963876]
[1761483357364,2.45664934,4070.6,4070.2,0.51963876]
[1761483357516,0.2151,4070.3,4070.0,0.64790868]
[1761483357842,0.2151,4070.3,4070.1,0.5211717]
[1761483358005,0.2151,4070.3,4070.2,0.5211717]
[1761483360355,0.6919,4070.7,4070.2,0.5211717]
[1761483360562,0.2186,4071.0,4070.3,1.16908038]
[1761483360852,0.2186,4070.9,4070.4,0.5211717]
[1761483361052,0.55528383,4070.9,4070.5,0.5211717]
[1761483361257,0.4733,4070.8,4070.6,0.5211717]
[1761483361429,0.4733,4070.8,4070.7,0.5211717]
[1761483361829,0.5965,4070.8,4070.7,0.5211717]
[1761483363386,0.001,4070.8,4070.7,0.5211717]
[1761483363670,3.22134226,4070.8,4070.7,0.5211717]
[1761483364058,2.45661717,4070.7,4070.0,0.64790868]
[1761483364263,2.45664029,4070.6,4070.1,1.16989631]
[1761483364457,0.4407,4070.6,4070.2,0.52198763]
[1761483364773,0.4407,4070.5,4070.3,0.52198763]
[1761483364949,0.7628519,4070.5,4070.4,0.52198763]
[1761483365347,0.001,4070.8,4070.4,0.52198763]
[1761483365555,0.001,4070.8,4069.8,0.86387824]
[1761483365556,0.4407,4070.7,4070.5,0.52198763]
[1761483365748,2.89727994,4070.7,4070.6,0.52198763]
[1761483365946,0.4407,4070.7,4070.6,0.52198763]
[1761483367683,2.89727994,4070.7,4070.6,0.52198763]
[1761483367856,3.23082793,4070.7,4070.6,0.52198763]
[1761483368240,0.77424799,4070.7,4070.6,0.52198763]
[1761483368872,0.001,4070.8,4070.6,0.52198763]
[1761483369048,0.001,4070.8,4070.7,0.52198763]
[1761483369573,0.001,4070.8,4070.7,4.53376757]
[1761483370060,0.001,4070.8,4070.7,4.96176757]
[1761483370436,0.001,4070.8,4070.7,5.78633336]
[1761483370639,0.001,4070.8,4070.7,5.76176757]
[1761483371875,0.001,4070.8,4070.7,2.87718763]
[1761483372090,0.001,4070.8,4070.7,5.33376757]
[1761483372883,0.001,4070.8,4070.7,2.87718763]
[1761483373043,0.001,4070.8,4070.7,5.33376757]
[1761483373244,0.001,4070.8,4070.7,3.74784788]
[1761483373446,0.001,4070.8,4070.7,6.20442782]
[1761483374185,0.001,4070.8,4070.7,2.87718763]
[1761483374480,0.001,4070.8,4070.7,5.33376757]
[1761483374846,0.001,4070.8,4070.7,2.87718763]
[1761483377075,0.001,4070.8,4070.7,1.97468796]
[1761483377274,0.4601,4070.8,4070.7,1.32198763]
[1761483377979,2.9166196,4070.8,4070.7,1.32198763]
[1761483378607,0.4601,4070.8,4070.7,1.32198763]
[1761483378784,0.001,4070.8,4070.7,1.32198763]
[1761483378984,2.9166196,4070.8,4070.7,1.32198763]
[1761483379901,2.9166196,4070.8,4070.7,0.8]
[1761483380079,3.47601411,4070.8,4070.7,0.8]
[1761483381178,0.001,4070.8,4070.7,0.8]
[1761483381498,0.681,4070.8,4070.7,0.8]
[1761483381877,3.1375196,4070.8,4070.7,1.32233315]
[1761483382189,3.1375196,4070.8,4070.7,0.8]
[1761483382719,3.1375196,4070.8,4070.7,1.32241304]
[1761483383005,3.69691251,4070.8,4070.7,0.8]
[1761483383210,3.69691251,4070.8,4070.7,1.32247948]
[1761483384623,3.69691251,4070.8,4070.7,0.8]
[1761483388128,4.20379251,4070.8,4070.7,0.8]
[1761483390001,7.61599251,4070.8,4070.7,0.8]
[1761483392829,3.82011251,4070.8,4070.7,0.8]
[1761483394832,4.32699251,4070.8,4070.7,0.8]
[1761483396806,3.82011251,4070.8,4070.7,0.8]
[1761483399036,3.36101251,4070.8,4070.7,0.8]
[1761483399240,0.1242,4070.8,4070.7,1.32166177]
[1761483399543,2.5807196,4070.8,4070.7,1.32166177]
[1761483400436,0.1242,4070.8,4070.7,1.32166177]
[1761483401105,2.7981196,4070.8,4070.7,1.32166177]
[1761483401338,3.79777264,4070.8,4070.7,0.8]
[1761483404512,4.30465264,4070.8,4070.7,0.8]
[1761483405908,7.59165264,4070.8,4070.7,0.8]
[1761483411055,7.58965264,4070.8,4070.7,0.8]
[1761483412044,3.32357264,4070.8,4070.7,0.8]
[1761483412247,3.10617264,4070.8,4070.7,0.8]
[1761483412641,6.39117264,4070.8,4070.7,0.8]
[1761483413148,6.86537264,4070.8,4070.7,0.8]
[1761483413447,3.10617264,4070.8,4070.7,0.8]
[1761483415349,0.1242,4070.8,4070.7,1.32327692]
[1761483415649,2.5807196,4070.8,4070.7,1.32327692]
[1761483416064,0.1242,4070.8,4070.7,1.32327692]
[1761483416859,2.5807196,4070.8,4070.7,1.32327692]
[1761483419964,0.1242,4070.8,4070.7,1.32327692]
[1761483420561,2.5807196,4070.8,4070.7,1.32327692]
[1761483420860,2.5807196,4070.8,4070.7,1.79047692]
[1761483420861,0.001,4070.8,4070.7,1.79047692]
[1761483421056,0.001,4070.8,4070.7,2.21211064]
[1761483421237,0.001,4070.8,4070.7,1.79047692]
[1761483421437,0.001,4070.8,4070.7,1.32327692]
[1761483423701,3.6311996,4070.8,4070.7,1.32327692]
[1761483423854,3.6311996,4070.8,4070.7,0.8]
[1761483424178,4.82676006,4070.8,4070.7,0.8]
[1761483425973,8.10876006,4070.8,4070.7,0.8]
[1761483428188,7.65866006,4070.8,4070.7,0.8]
[1761483428359,0.001,4070.8,4070.7,0.8]
[1761483429081,2.4575196,4070.8,4070.7,0.8]
[1761483429253,0.001,4070.8,4070.7,0.8]
[1761483429451,0.001,4070.8,4070.7,1.32274552]
[1761483429705,2.4575196,4070.8,4070.7,0.8]
[1761483429887,0.001,4070.8,4070.7,0.8]
[1761483430090,0.001,4070.8,4070.7,1.32267888]
[1761483430456,0.001,4070.8,4070.7,1.79437888]
[1761483430857,0.1242,4070.8,4070.7,1.79437888]
[1761483431289,0.1242,4070.8,4070.7,1.32267888]
[1761483431591,3.0107196,4070.8,4070.7,0.8]
[1761483431802,7.36754303,4070.8,4070.7,0.8]
[1761483432784,6.93754303,4070.8,4070.7,0.8]
[1761483433003,7.36754303,4070.8,4070.7,0.8]
[1761483433309,3.15066303,4070.8,4070.7,0.8]
[1761483435400,3.58066303,4070.8,4070.7,0.8]
[1761483435601,4.08754303,4070.8,4070.7,0.8]
[1761483436229,3.15066303,4070.8,4070.7,0.8]
[1761483436828,3.58066303,4070.8,4070.7,0.8]
[1761483438542,3.15066303,4070.8,4070.7,0.8]
[1761483439232,3.58066303,4070.8,4070.7,0.8]
[1761483439809,4.08754303,4070.8,4070.7,0.8]
[1761483442026,2.96376172,4070.2,4070.1,0.002]
[1761483442232,6.79496172,4070.2,4070.1,0.002]
[1761483444312,6.67076172,4070.2,4070.1,0.002]
[1761483450244,10.81196172,4070.2,4070.1,0.002]
[1761483450421,10.9102859,4070.2,4070.1,0.002]
[1761483450611,12.24699492,4070.2,4070.1,0.002]
[1761483453142,7.10526357,4069.7,4069.6,1e-08]
[1761483453354,10.38026357,4069.7,4069.6,1e-08]
[1761483453595,10.81026357,4069.7,4069.6,1e-08]
[1761483453728,2.9643051,4069.3,4069.2,1e-08]
[1761483453910,8.2245051,4069.3,4069.2,1e-08]
[1761483454114,10.8105051,4069.3,4069.2,1e-08]
[1761483454418,10.9337051,4069.3,4069.2,1e-08]
[1761483455344,4.6427051,4069.3,4069.2,1e-08]
[1761483455548,8.63754008,4069.3,4069.2,1e-08]
[1761483455752,4.85566008,4069.3,4069.2,1e-08]
[1761483456050,2.5806251,4069.3,4069.2,1e-08]
[1761483456343,2.5806251,4069.3,4069.2,0.47170001]
[1761483456748,2.5806251,4069.3,4069.2,1e-08]
[1761483458475,2.5806251,4069.3,4069.2,0.46050001]
[1761483458682,2.5806251,4069.3,4069.2,1e-08]
[1761483458975,3.41191804,4069.3,4069.2,1e-08]
[1761483463368,2.5806251,4069.3,4069.2,0.46050001]
[1761483463679,2.5806251,4069.3,4069.2,1e-08]
[1761483464947,3.0875051,4069.3,4069.2,1e-08]
[1761483465153,6.3605051,4069.3,4069.2,1e-08]
[1761483466990,0.9697604,4070.1,4069.2,1e-08]
[1761483466991,0.2215,4072.5,4069.7,2.45718357]
[1761483467305,0.003,4072.2,4070.6,0.65123486]
[1761483467463,2.45722146,4071.3,4070.7,0.52152305]
[1761483467654,0.001,4071.3,4070.1,0.007]
[1761483467853,0.001,4071.3,4070.2,0.52081077]
[1761483468084,0.001,4071.3,4070.3,0.52081077]
[1761483468251,0.001,4071.3,4070.5,2.45664939]
[1761483468651,0.001,4071.3,4070.6,0.007]
[1761483470971,0.001,4071.3,4070.7,0.02456579]
[1761483471205,0.001,4071.3,4070.7,2.45652185]
[1761483471400,0.001,4071.3,4070.8,0.007]
[1761483471763,0.001,4071.3,4070.8,2.46350792]
[1761483472403,0.001,4071.3,4070.9,0.007]
[1761483473406,0.001,4071.3,4070.9,0.24635138]
[1761483473707,0.001,4071.3,4071.2,2.45627824]
[1761483474089,0.001,4071.3,4071.2,2.46327824]
[1761483475010,0.001,4071.3,4071.2,0.007]
[1761483475197,0.001,4071.3,4071.2,2.46327824]
[1761483475404,0.001,4071.3,4071.2,0.007]
[1761483476921,0.1242,4071.3,4071.2,0.007]
[1761483477105,0.1242,4071.3,4071.2,2.70962392]
[1761483477278,0.001,4071.3,4071.2,2.46327824]
[1761483479521,0.001,4071.7,4071.6,2.45603693]
[1761483479721,0.001,4071.7,4071.6,5.71146158]
[1761483479937,0.2215,4074.0,4072.1,2.45573536]
[1761483480137,2.45429557,4074.5,4073.4,2.45494942]
[1761483480336,2.45429557,4074.5,4072.7,0.02455373]
[1761483480337,2.45443294,4074.3,4072.7,0.02455373]
[1761483480517,2.45443294,4074.3,4072.7,0.03055373]
[1761483480720,2.45443294,4074.3,4072.8,0.006]
[1761483480920,2.45443294,4074.3,4073.4,2.4549236]
[1761483481120,2.7690988,4074.2,4073.4,2.4549236]
[1761483481327,0.31461329,4074.2,4073.4,2.45494341]
[1761483481634,0.2215,4074.5,4073.4,0.006]
[1761483481840,0.2245,4074.7,4073.3,0.006]
[1761483482038,0.003,4074.7,4073.5,0.006]
[1761483482347,0.003,4074.7,4073.7,2.4547606]
[1761483482644,0.003,4074.7,4074.1,2.45449017]
[1761483482841,0.003,4074.7,4074.0,2.45453172]
[1761483483045,0.003,4074.7,4074.2,0.02454469]
[1761483483242,0.003,4074.7,4074.0,0.006]
[1761483483545,0.003,4074.7,4074.1,2.45450984]
[1761483483740,0.24930163,4074.7,4074.1,2.45450984]
[1761483483913,0.003,4074.7,4074.1,2.45450984]
[1761483484108,0.003,4074.7,4074.0,0.006]
[1761483484313,0.003,4074.7,4073.9,2.45459014]
[1761483484523,0.003,4074.7,4073.3,0.006]
[1761483484724,2.45451764,4074.2,4073.1,2.45510052]
[1761483484922,2.45451764,4074.2,4073.2,2.45506719]
[1761483484923,0.49088724,4074.1,4073.2,2.45506719]
[1761483485128,0.49088724,4074.1,4073.2,2.45507217]
[1761483485326,0.003,4074.7,4073.5,2.45488893]
[1761483485536,0.003,4074.7,4073.3,0.006]
[1761483485744,0.003,4074.7,4073.9,2.45463421]
[1761483485950,0.003,4074.7,4073.4,0.006]
[1761483486150,0.003,4074.7,4074.6,2.45422863]
[1761483486464,0.003,4074.7,4074.6,2.47877091]
[1761483486631,0.003,4074.7,4074.6,2.46022863]
[1761483487429,0.003,4074.7,4073.7,2.45477084]
[1761483487829,0.26866549,4074.6,4073.7,0.006]
[1761483488065,0.26866549,4074.6,4073.8,2.45465229]
[1761483488263,0.26866549,4074.6,4073.9,2.45463549]
[1761483488476,0.26866549,4074.6,4074.0,2.45456931]
[1761483488964,2.4543473,4074.5,4073.7,0.006]
[1761483489169,0.27260128,4074.4,4073.3,2.45497693]
[1761483489373,0.003,4074.7,4072.1,2.94684381]
[1761483489374,0.003,4074.7,4073.4,0.02454951]
[1761483489559,0.003,4074.7,4072.6,0.26866549]
[1761483489560,0.003,4074.7,4073.5,0.51899836]
[1761483489756,0.003,4074.7,4073.5,1.5612]
[1761483489959,0.003,4074.7,4073.6,0.5437389]
[1761483490137,0.003,4074.7,4074.6,2.45422863]
[1761483490337,0.004,4074.7,4074.6,2.47877091]
[1761483490539,0.004,4074.7,4074.6,2.48477091]
[1761483491273,0.004,4074.7,4074.6,2.46022863]
[1761483491468,0.004,4074.7,4074.6,2.45422863]
[1761483491970,0.004,4074.7,4074.6,2.46022863]
[1761483492170,0.004,4074.7,4074.6,4.65640568]
[1761483492376,0.004,4074.7,4074.6,5.17544924]
[1761483493885,0.004,4074.7,4074.6,4.52247219]
[1761483494166,0.004,4074.7,4074.6,4.00942863]
[1761483494335,0.004,4074.7,4074.6,4.52271577]
[1761483494535,0.004,4074.7,4074.6,4.52871577]
[1761483494979,0.004,4074.7,4074.6,4.55325805]
[1761483495182,0.004,4074.7,4074.6,5.25401804]
[1761483495390,0.004,4074.7,4074.6,5.22347576]
[1761483495954,0.004,4074.7,4074.6,4.52871577]
[1761483496561,0.004,4074.7,4074.6,0.51928714]
[1761483496868,0.004,4074.7,4074.6,2.46022863]
[1761483497067,0.004,4074.7,4074.6,2.99805805]
[1761483497294,0.004,4074.7,4074.6,2.97351577]
[1761483497452,0.004,4074.7,4074.6,3.09591577]
[1761483497656,0.004,4074.7,4074.6,0.51328714]
[1761483498185,0.004,4074.7,4074.6,2.06848714]
[1761483498567,0.004,4074.7,4074.6,2.97371577]
[1761483498763,0.004,4074.7,4074.6,4.52891577]
[1761483498968,0.004,4074.7,4074.6,2.06848714]
[1761483499166,0.004,4074.7,4074.6,4.52271577]
[1761483499672,0.004,4074.7,4074.6,4.52891577]
[1761483499863,0.004,4074.7,4074.6,5.30415159]
[1761483500578,0.004,4074.7,4074.6,4.52271577]
[1761483501183,0.6498,4074.7,4074.6,4.52271577]
[1761483501378,0.004,4074.7,4074.6,2.06848714]
[1761483501580,0.004,4074.7,4074.6,4.52271577]
[1761483501782,0.004,4074.7,4074.6,2.06848714]
[1761483502291,0.004,4074.7,4074.6,4.52271577]
[1761483502497,1e-08,4074.8,4074.7,4.0115684]
[1761483502701,1e-08,4074.8,4074.7,4.52485554]
[1761483502886,1e-08,4074.8,4074.7,5.38152785]
[1761483503282,1e-08,4074.8,4074.7,4.52265554]
[1761483504177,0.42790001,4074.8,4074.7,1.15813894]
[1761483504364,0.42790001,4074.8,4074.1,0.6448518]
[1761483504565,0.42790001,4074.8,4074.2,0.51647472]
[1761483504566,2.4541684,4074.7,4074.2,0.51647472]
[1761483504898,2.4541684,4074.7,4074.0,0.6448518]
[1761483504899,0.30997428,4074.8,4074.3,0.51647472]
[1761483505097,0.30997428,4074.8,4073.5,1.30246972]
[1761483505098,1e-08,4074.8,4074.4,0.51647472]
[1761483505297,1e-08,4074.8,4074.5,0.51647472]
[1761483505491,1e-08,4074.8,4074.6,0.51647472]
[1761483505672,1e-08,4074.8,4074.7,0.51647472]
[1761483507408,1e-08,4074.8,4074.7,1.16132652]
[1761483507619,1e-08,4074.8,4074.7,0.51647472]
[1761483507920,1e-08,4074.8,4074.7,1.16132652]
[1761483508288,1e-08,4074.8,4074.7,0.51647472]
[1761483509117,2.88200818,4074.8,4074.7,0.51647472]
[1761483509322,0.73789083,4074.8,4074.7,1.37534703]
[1761483509525,0.42790001,4074.8,4074.7,0.51647472]
[1761483509724,2.88200818,4074.8,4074.7,0.51647472]
[1761483510218,3.38888818,4074.8,4074.7,0.51647472]
[1761483510389,3.38888818,4074.8,4074.1,0.86660482]
[1761483510390,2.45452983,4074.1,4074.0,0.65008885]
[1761483510590,2.45459008,4074.0,4073.9,0.65008885]
[1761483510791,2.45465033,4073.9,4073.6,0.86660482]
[1761483511007,2.88255033,4073.9,4073.6,0.86660482]
[1761483511210,2.45471851,4073.8,4073.6,0.86660482]
[1761483511616,2.88267084,4073.7,4073.5,0.86660482]
[1761483511804,2.8827311,4073.6,4073.4,0.86660482]
[1761483511999,2.45479654,4073.7,4073.4,0.86660482]
[1761483512201,0.2179,4074.2,4073.1,1.30246972]
[1761483512202,0.1224,4073.5,4073.3,0.86660482]
[1761483512406,2.45469266,4073.9,4073.3,0.86660482]
[1761483512602,0.4279,4074.1,4073.2,1.30246972]
[1761483512603,0.1224,4073.4,4073.2,1.30246972]
[1761483512842,0.1224,4073.4,4073.2,2.45506937]
[1761483513044,0.1224,4073.4,4073.1,3.757585]
[1761483513243,0.1224,4073.4,4073.3,0.86678715]
[1761483513536,0.2179,4074.2,4073.3,1.76490694]
[1761483513772,0.2179,4074.2,4074.1,0.64991664]
[1761483514128,0.4279,4074.6,4074.1,0.64991664]
[1761483514328,0.4279,4074.6,4074.2,0.64991664]
[1761483514571,2.88213278,4074.6,4074.1,0.64991664]
[1761483514734,0.4279,4074.6,4074.1,0.64991664]
[1761483515442,2.88213841,4074.6,4074.1,0.64991664]
[1761483515642,2.45430431,4074.5,4074.1,0.64991664]
[1761483515948,1.03399675,4074.6,4074.2,0.64991664]
[1761483516331,1.03399675,4074.6,4074.1,0.64991664]
[1761483516729,1.03399675,4074.6,4074.1,3.10444389]
[1761483517257,1.03399675,4074.6,4074.1,0.64991664]
[1761483517427,0.4279,4074.5,4074.1,0.64991664]
[1761483517631,0.4279,4074.5,4074.0,0.64991664]
[1761483520473,0.4279,4074.5,4073.9,3.10455324]
[1761483520980,0.4279,4074.5,4074.0,2.45458174]
[1761483521363,0.4279,4074.5,4073.9,3.10454735]
[1761483521540,0.4279,4074.5,4073.9,0.64991664]
[1761483521743,2.45439597,4074.4,4073.8,0.64991664]
[1761483521953,3.04869127,4074.3,4073.8,0.64991664]
[1761483522155,0.2298,4073.9,4073.7,0.64991664]
[1761483522483,0.2298,4073.9,4073.8,0.51951097]
[1761483523348,0.6687,4073.9,4073.8,0.51951097]
[1761483523567,0.7911,4073.9,4073.8,0.51951097]
[1761483524845,1e-08,4074.8,4073.8,0.51951097]
[1761483525050,0.4389,4074.7,4073.9,0.51951097]
[1761483525272,0.4389,4074.7,4074.0,2.97406034]
[1761483525582,0.4389,4074.7,4073.4,0.86655552]
[1761483525583,0.4389,4074.7,4074.1,2.97400072]
[1761483525754,0.50688001,4074.8,4074.2,0.51951097]
[1761483525960,0.50688001,4074.8,4074.3,2.45439917]
[1761483526160,0.50688001,4074.8,4074.2,2.45445271]
[1761483526355,0.36177277,4074.7,4074.2,2.45445271]
[1761483526660,0.36277277,4074.7,4074.2,2.45445271]
[1761483526856,0.80167277,4074.7,4074.1,2.45449303]
[1761483527056,3.25585112,4074.7,4074.2,0.51946867]
[1761483527363,0.001,4074.7,4074.6,2.61332863]
[1761483527580,0.001,4074.7,4074.6,3.78280315]
[1761483527760,0.001,4074.7,4074.6,3.13288651]
[1761483527963,0.001,4074.7,4074.6,0.67865788]
[1761483528796,0.001,4074.7,4074.6,0.51955788]
[1761483529003,0.4399,4074.7,4074.6,0.51955788]
[1761483529203,0.4399,4074.7,4074.0,0.86855552]
[1761483529204,0.4399,4074.7,4074.0,0.65191664]
[1761483529403,0.4399,4074.7,4074.1,0.51966984]
[1761483529607,0.4399,4074.7,4074.2,0.51966984]
[1761483529802,2.76662084,4074.6,4074.3,0.51966984]
[1761483530009,2.76662084,4074.6,4074.4,0.51966984]
[1761483530206,3.20552084,4074.6,4074.0,0.002]
[1761483530370,2.45428886,4074.5,4074.1,0.51984331]
[1761483530575,2.45428886,4074.5,4074.2,0.51984331]
[1761483530904,2.45428886,4074.5,4074.3,0.51984331]
[1761483531102,0.001,4074.7,4074.6,2.45422863]
[1761483531397,0.001,4074.7,4074.6,6.64060751]
[1761483531598,0.001,4074.7,4074.6,6.61606523]
[1761483532399,0.001,4074.7,4074.6,5.31786913]
[1761483534100,0.001,4074.7,4074.6,6.61606523]
[1761483534400,0.001,4074.7,4074.6,5.31786913]
[1761483534770,0.001,4074.7,4074.6,5.65612863]
[1761483534975,0.001,4074.7,4074.6,5.31786913]
[1761483535195,0.001,4074.7,4074.6,4.28989055]
[1761483535394,0.001,4074.7,4074.6,3.44931422]
[1761483535606,0.001,4074.7,4074.6,5.00451422]
[1761483536021,0.001,4074.7,4074.6,4.97997194]
[1761483536586,0.001,4074.7,4074.6,2.72374699]
[1761483536990,0.001,4074.7,4074.6,2.07504331]
[1761483537819,0.001,4074.7,4074.6,0.51984331]
[1761483538119,2.45440947,4074.3,4074.0,0.65070368]
[1761483538291,2.45441594,4074.3,4074.1,0.51913803]
[1761483538488,2.45447156,4074.2,4074.0,0.002]
[1761483538806,2.45452983,4074.1,4074.0,0.002]
[1761483539397,2.45448631,4074.2,4074.0,0.002]
[1761483540000,0.001,4074.7,4074.1,0.1591]
[1761483540186,0.001,4074.7,4074.2,2.07434275]
[1761483540419,0.001,4074.7,4074.3,0.51914275]
[1761483540807,0.001,4074.7,4074.4,1.5552]
[1761483541008,0.001,4074.7,4074.5,2.97342503]
[1761483541193,0.001,4074.7,4074.6,0.51914275]
[1761483541528,0.4389,4074.6,4074.0,0.65070368]
[1761483541827,0.4389,4074.6,4074.1,0.51917768]
[1761483541828,2.45446958,4074.2,4074.1,0.51917768]